bitfinex/quotes_ETHUSD_20251230
["timestamp","ask_amount","ask_price","bid_price","bid_amount"]
[1767055511155,1.06838676,2936.7,2936.0,2.4717]
[1767055511542,1.06838676,2936.7,2936.0,2.4737]
[1767055513548,1.06838676,2936.7,2936.1,2.4717]
[1767055515147,1.06838676,2936.7,2936.1,3.09333618]
[1767055515363,1.06838676,2936.7,2936.2,2.4717]
[1767055515856,0.001,2936.9,2936.3,2.2925]
[1767055516226,0.001,2936.9,2936.4,2.2925]
[1767055518728,0.001,2936.9,2936.0,5.7004676]
[1767055518941,0.01023105,2936.8,2936.1,1.49770376]
[1767055519436,0.01123105,2936.9,2936.0,2.2945]
[1767055519636,0.01023105,2936.5,2935.9,0.894]
[1767055519950,0.01023105,2936.5,2935.8,5.69865836]
[1767055520352,0.01023105,2936.5,2936.0,0.002]
[1767055520652,0.01023105,2936.5,2935.9,2.2925]
[1767055520854,0.43095651,2936.4,2935.9,2.2925]
[1767055521235,0.01023105,2936.5,2935.9,2.2925]
[1767055523550,0.001,2936.8,2936.1,2.2925]
[1767055523950,0.01123105,2936.8,2936.1,2.2925]
[1767055527154,0.001,2936.8,2936.1,2.2925]
[1767055527356,0.001,2936.8,2936.3,2.2925]
[1767055527559,0.001,2936.8,2936.5,2.2925]
[1767055528053,0.001,2936.8,2936.1,3.40584425]
[1767055528054,0.001,2936.8,2936.2,2.32655762]
[1767055528758,0.001,2936.8,2936.2,3.43981194]
[1767055528945,0.001,2936.8,2936.3,2.2925]
[1767055529661,0.001,2936.8,2936.5,2.2925]
[1767055536942,0.001,2936.8,2936.6,2.32655298]
[1767055537261,0.001,2936.8,2936.6,2.2925]
[1767055538570,0.001,2936.9,2936.6,2.2925]
[1767055541703,0.01123105,2936.9,2936.3,2.2925]
[1767055546182,0.44335103,2936.9,2936.1,2.3036]
[1767055549582,0.44335103,2936.9,2936.1,5.70947667]
[1767055558265,0.43311998,2936.9,2936.1,3.40587667]
[1767055558586,0.001,2936.9,2936.2,2.4682]
[1767055561896,0.895,2936.9,2936.3,2.50225646]
[1767055562699,0.001,2936.9,2936.3,2.50225646]
[1767055562898,0.001,2936.9,2936.3,2.4682]
[1767055565001,0.001,2936.9,2936.3,5.87383167]
[1767055565173,0.001,2936.9,2936.4,2.4682]
[1767055570913,0.001,2936.9,2936.4,5.87372463]
[1767055571212,0.001,2936.9,2936.5,2.4682]
[1767055576412,0.06451279,2936.5,2936.3,2.4147]
[1767055576989,0.001,2936.9,2936.4,2.4487553]
[1767055577189,0.001,2936.9,2936.2,2.4147]
[1767055577417,0.01123105,2936.9,2936.2,2.4147]
[1767055577622,0.59711508,2936.8,2936.2,2.4147]
[1767055578223,5.66303481,2936.8,2936.2,2.4147]
[1767055580017,5.66303481,2936.8,2936.4,0.002]
[1767055580521,0.59711508,2936.8,2936.4,0.002]
[1767055581223,0.59711508,2936.8,2936.2,2.4147]
[1767055582834,0.59711508,2936.8,2936.3,2.44875646]
[1767055582995,0.59711508,2936.8,2936.3,2.4147]
[1767055587132,0.59711508,2936.8,2936.3,2.4167]
[1767055594032,0.59811508,2936.8,2936.3,2.4167]
[1767055595035,0.59811508,2936.8,2936.1,2.4147]
[1767055595036,5.66403481,2936.8,2936.1,2.4147]
[1767055595225,5.66403481,2936.8,2936.0,0.002]
[1767055595226,5.06591973,2936.4,2936.0,0.002]
[1767055595405,0.894,2936.5,2936.0,0.002]
[1767055595610,0.894,2936.5,2936.0,2.4167]
[1767055595812,0.90423105,2936.5,2936.0,2.4167]
[1767055596018,0.59701508,2936.4,2936.0,2.4167]
[1767055603244,0.59701508,2936.4,2936.1,0.03405878]
[1767055603545,0.894,2936.5,2936.2,2.4147]
[1767055605727,0.894,2936.5,2935.8,3.40617961]
[1767055605921,0.894,2936.5,2935.9,2.2812]
[1767055606124,0.03406009,2936.4,2935.9,2.2812]
[1767055606318,5.64367737,2936.7,2936.0,0.03405994]
[1767055606523,0.894,2936.5,2936.0,2.31525994]
[1767055606742,0.894,2936.5,2936.0,2.2812]
[1767055606945,0.59852783,2936.6,2936.0,2.2812]
[1767055607140,0.894,2936.5,2936.0,2.2812]
[1767055607750,0.59852783,2936.6,2936.0,2.2812]
[1767055607950,1.51822052,2936.5,2936.0,2.2812]
[1767055608255,0.894,2936.6,2936.0,2.2812]
[1767055608438,0.03406009,2936.5,2935.9,2.2812]
[1767055609030,5.11021087,2936.5,2935.7,3.40629965]
[1767055609256,5.11021087,2936.5,2935.7,5.68749965]
[1767055609439,5.11021087,2936.5,2935.8,2.2812]
[1767055609639,0.60042109,2936.4,2935.8,2.2812]
[1767055611452,0.04429114,2936.5,2935.8,2.2812]
[1767055612423,0.04429114,2936.5,2935.5,2.2812]
[1767055612424,5.06591973,2936.1,2935.5,2.2812]
[1767055612823,5.95991973,2936.1,2935.5,2.2812]
[1767055613227,0.894,2936.1,2935.5,2.2812]
[1767055614485,1.49442109,2936.1,2935.5,2.2812]
[1767055615259,1.49442109,2936.1,2935.5,2.2832]
[1767055618032,0.894,2936.1,2935.5,2.2832]
[1767055624845,0.894,2936.1,2935.5,5.68974669]
[1767055625655,0.894,2936.1,2935.5,2.2832]
[1767055627157,0.04429114,2936.3,2935.5,2.2832]
[1767055627356,0.894,2936.2,2935.5,2.2832]
[1767055627559,0.03406009,2936.1,2935.5,2.2832]
[1767055627934,0.03406009,2936.1,2935.5,5.68974536]
[1767055628160,0.03406009,2936.1,2935.6,2.4764]
[1767055628562,0.894,2936.2,2935.6,2.4764]
[1767055628966,0.894,2936.2,2935.8,2.4764]
[1767055630432,0.001,2936.1,2935.8,2.4764]
[1767055631067,0.01123105,2936.5,2935.8,2.51046226]
[1767055631375,0.01123105,2936.5,2935.9,2.4764]
[1767055631376,0.894,2936.4,2935.9,2.4764]
[1767055632565,0.001,2936.5,2936.0,2.4764]
[1767055632978,0.03506009,2936.5,2936.0,2.4764]
[1767055633577,0.03506009,2936.5,2935.9,0.59166737]
[1767055633785,0.03506009,2936.5,2935.9,3.06806737]
[1767055635452,0.03506009,2936.5,2935.9,2.4764]
[1767055636449,0.04529114,2936.5,2935.6,3.4064107]
[1767055636654,0.04529114,2936.5,2935.7,2.2843]
[1767055637152,0.01023105,2936.3,2935.7,2.2843]
[1767055637475,0.04429114,2936.2,2935.7,2.2843]
[1767055637648,0.894,2936.1,2935.7,2.2843]
[1767055641563,0.93929114,2936.5,2935.6,3.40644352]
[1767055641778,0.001,2936.5,2935.8,2.2843]
[1767055641985,0.001,2936.5,2936.0,2.2843]
[1767055642483,0.001,2936.8,2936.0,2.2843]
[1767055642685,0.001,2936.8,2936.2,2.2843]
[1767055643986,0.001,2936.8,2936.4,2.2843]
[1767055645166,0.01123105,2936.8,2936.4,2.2843]
[1767055645365,0.01123105,2936.8,2936.2,2.2843]
[1767055646382,0.01123105,2936.8,2936.2,2.94271326]
[1767055646810,0.01123105,2936.8,2936.2,0.65841326]
[1767055646993,0.01123105,2936.8,2936.3,2.2843]
[1767055657312,0.001,2936.8,2936.3,2.2843]
[1767055661905,0.001,2936.8,2936.3,2.2863]
[1767055662907,0.34611266,2936.8,2936.3,2.2863]
[1767055663109,0.03406009,2936.7,2936.3,2.2863]
[1767055663805,0.03406009,2936.7,2936.3,0.002]
[1767055667517,4.371e-05,2936.9,2936.3,0.002]
[1767055667817,3.41527386,2937.7,2936.5,2.483]
[1767055668116,0.68191961,2937.6,2936.7,2.483]
[1767055668488,0.01023105,2937.5,2936.7,2.483]
[1767055670114,3.41453879,2937.5,2936.7,2.483]
[1767055670308,0.01023105,2937.3,2936.7,2.483]
[1767055670507,0.35270803,2937.3,2936.5,2.483]
[1767055670703,0.35270803,2937.3,2936.5,5.88839119]
[1767055670909,0.34247698,2937.3,2936.6,2.483]
[1767055671111,0.01123105,2937.5,2936.7,2.483]
[1767055674320,0.01023105,2937.3,2936.7,2.483]
[1767055674518,0.01023105,2937.3,2936.4,4.29948124]
[1767055674823,0.01023105,2937.3,2936.6,2.4538]
[1767055679350,0.01023105,2937.3,2936.7,2.4538]
[1767055680109,0.01123105,2937.5,2936.7,2.4538]
[1767055680437,0.40973147,2937.4,2936.7,2.4538]
[1767055680636,0.01123105,2937.5,2936.7,2.4538]
[1767055680844,0.001,2937.5,2936.7,2.4538]
[1767055682010,0.01123105,2937.5,2936.7,2.4538]
[1767055682841,0.01123105,2937.5,2936.7,3.40515831]
[1767055683017,0.01123105,2937.5,2936.8,2.48785066]
[1767055683211,0.001,2937.5,2936.8,2.48785066]
[1767055683419,0.001,2937.5,2936.9,2.4538]
[1767055684248,0.001,2937.5,2937.0,2.4538]
[1767055686211,0.001,2937.5,2937.1,2.4538]
[1767055713363,0.001,2937.6,2937.2,2.3345]
[1767055713557,0.001,2937.7,2937.2,2.3345]
[1767055713753,0.001,2937.7,2937.3,2.3345]
[1767055723877,0.001,2937.7,2937.1,2.2796]
[1767055724449,0.001,2937.9,2937.6,2.2796]
[1767055724782,0.001,2937.9,2937.1,3.40471248]
[1767055724959,0.001,2937.9,2937.2,2.2796]
[1767055725158,0.001,2937.9,2937.4,2.2796]
[1767055729278,0.001,2937.9,2937.3,0.56843125]
[1767055729576,0.001,2937.9,2937.3,3.125e-05]
[1767055736785,0.001,2937.9,2937.3,2.43633125]
[1767055736991,0.001,2937.9,2937.3,3.125e-05]
[1767055736992,0.01023105,2937.8,2937.3,3.125e-05]
[1767055740296,5.06337438,2937.7,2937.3,3.125e-05]
[1767055740490,5.06337438,2937.5,2937.0,0.002]
[1767055740991,0.01023105,2937.6,2937.0,2.4383]
[1767055741194,0.8590157,2937.6,2937.0,2.4383]
[1767055743495,5.06337438,2937.5,2937.0,2.4383]
[1767055744188,0.8590157,2937.6,2937.0,2.4383]
[1767055748465,0.84878465,2937.6,2937.0,2.4383]
[1767055748663,0.01023105,2937.8,2937.0,2.4383]
[1767055751002,0.01023105,2937.6,2937.0,2.4383]
[1767055751373,0.01123105,2937.6,2937.0,2.4383]
[1767055751881,0.001,2937.6,2937.0,2.4383]
[1767055755115,0.001,2937.6,2937.0,5.84312988]
[1767055755297,0.001,2937.6,2937.1,2.4363]
[1767055761809,0.001,2937.6,2937.2,2.3471]
[1767055762021,0.001,2937.6,2937.2,2.38114603]
[1767055762312,0.001,2937.9,2937.3,2.3471]
[1767055763616,0.01023105,2937.8,2937.3,2.3471]
[1767055765314,0.01023105,2937.8,2937.1,3.40470344]
[1767055765682,0.01023105,2937.8,2937.2,2.3471]
[1767055766327,0.01023105,2937.8,2937.2,2.92248034]
[1767055771924,0.01023105,2937.8,2937.2,2.3471]
[1767055772692,0.01123105,2937.8,2937.2,2.3471]
[1767055777496,0.01123105,2937.8,2937.0,3.40682067]
[1767055777697,0.01123105,2937.8,2937.1,3.40469908]
[1767055777921,0.01123105,2937.8,2937.0,0.002]
[1767055778122,0.01123105,2937.8,2937.1,0.5754032]
[1767055778426,0.01123105,2937.8,2937.1,3.98010228]
[1767055779124,0.01123105,2937.8,2937.1,6.32720228]
[1767055780826,0.01123105,2937.8,2937.1,2.9225032]
[1767055781030,0.01123105,2937.8,2937.1,2.3471]
[1767055782922,0.01123105,2937.8,2937.1,5.75179915]
[1767055783128,0.01123105,2937.8,2937.2,2.3471]
[1767055790429,0.001,2937.8,2937.2,2.3471]
[1767055796646,5.07412099,2937.7,2937.0,2.4626]
[1767055797070,0.01023105,2937.5,2937.0,2.4626]
[1767055800549,0.01023105,2937.5,2937.0,0.002]
[1767055803341,0.01023105,2937.5,2937.0,2.4626]
[1767055803517,0.01023105,2937.7,2937.0,2.4626]
[1767055807228,0.38600629,2937.7,2937.0,2.4626]
[1767055809242,0.38600629,2937.7,2937.1,2.49464718]
[1767055809550,0.01023105,2937.7,2937.0,0.03404834]
[1767055809756,0.01023105,2937.7,2937.0,2.49464834]
[1767055811449,0.01023105,2937.7,2937.0,5.89945981]
[1767055811656,0.01023105,2937.7,2937.1,2.4606]
[1767055812056,0.03404733,2937.6,2937.1,2.4606]
[1767055812363,0.01023105,2937.5,2937.1,2.4606]
[1767055821082,0.01123105,2937.7,2937.1,2.49464718]
[1767055821772,0.01123105,2937.7,2937.1,2.4606]
[1767055822070,0.01123105,2937.7,2937.1,2.49464718]
[1767055823675,0.01123105,2937.7,2937.2,2.3538]
[1767055823849,0.001,2937.7,2937.3,2.38784487]
[1767055824372,0.001,2937.7,2937.3,2.3538]
[1767055824571,0.001,2937.8,2937.4,2.3538]
[1767055825350,0.01123105,2937.8,2937.4,2.3538]
[1767055825555,0.01123105,2937.8,2937.1,2.3538]
[1767055826275,0.01023105,2937.6,2937.1,2.3538]
[1767055828682,0.01123105,2937.8,2937.1,2.3538]
[1767055828853,0.86277558,2937.8,2937.1,2.3538]
[1767055830087,0.001,2937.8,2937.2,2.3538]
[1767055830288,0.001,2937.8,2937.3,2.3538]
[1767055830796,0.001,2937.8,2937.4,2.3538]
[1767055831668,0.001,2937.6,2937.4,2.3538]
[1767055832252,0.001,2937.8,2937.3,3.40446831]
[1767055832479,0.001,2937.8,2937.4,2.3538]
[1767055835753,0.001,2937.8,2937.5,2.3538]
[1767055835953,0.001,2937.8,2937.5,2.92961668]
[1767055836385,0.001,2937.9,2937.6,2.3538]
[1767055840490,0.001,2938.3,2937.8,2.3538]
[1767055840691,0.03504733,2938.3,2937.8,2.3538]
[1767055846766,3.41325529,2938.6,2937.8,2.3538]
[1767055846767,0.01023105,2938.6,2937.8,2.3071]
[1767055847676,0.01023105,2938.4,2937.8,2.3071]
[1767055847870,5.07471949,2938.4,2937.8,2.3071]
[1767055848797,0.01023105,2938.4,2937.5,6.60530475]
[1767055848973,0.01023105,2938.2,2937.5,3.2011]
[1767055849174,3.41348547,2938.4,2937.3,2.3071]
[1767055849175,5.07471949,2938.0,2937.3,2.3071]
[1767055849374,5.07471949,2938.0,2937.2,3.40452852]
[1767055849574,5.07471949,2938.0,2937.3,3.40448682]
[1767055849575,0.01023105,2938.0,2937.3,3.40448682]
[1767055849972,0.01023105,2938.0,2937.4,2.3071]
[1767055850202,5.07471949,2938.2,2937.4,2.3071]
[1767055850494,0.01023105,2938.0,2937.4,2.3071]
[1767055853988,0.01223105,2938.0,2937.4,2.3071]
[1767055862533,0.01223105,2938.0,2937.4,2.3091]
[1767055863538,5.07671949,2938.0,2937.4,2.3091]
[1767055870247,5.06448844,2937.6,2937.1,0.001]
[1767055870544,0.11722129,2937.4,2937.3,0.001]
[1767055881249,0.11722129,2937.4,2937.2,2.4879]
[1767055886053,0.11722129,2937.4,2937.0,2.3163]
[1767055887086,0.55968098,2937.4,2936.7,2.3143]
[1767055887358,0.11722129,2937.4,2936.7,2.3143]
[1767055887657,0.11922129,2937.4,2936.7,2.3143]
[1767055888638,0.11922129,2937.4,2936.8,2.3143]
[1767055890851,0.002,2937.4,2936.8,2.3143]
[1767055895159,0.002,2937.4,2936.8,2.3153]
[1767055901866,0.002,2937.4,2936.8,3.40606285]
[1767055902114,0.002,2937.4,2936.9,2.3143]
[1767055911277,0.002,2937.4,2936.9,1.3143]
[1767055925496,0.002,2937.4,2936.9,1.3163]
[1767055927879,0.896,2937.4,2937.1,2.4191]
[1767055929966,0.90623105,2938.0,2937.3,2.4191]
[1767055930296,0.896,2938.0,2937.3,2.28292596]
[1767055930599,0.002,2938.0,2937.3,2.28292596]
[1767055930802,0.002,2938.0,2937.5,2.4191]
[1767055931798,0.002,2938.0,2937.6,2.4191]
[1767055937014,0.002,2938.0,2937.1,3.40462648]
[1767055937015,5.06205814,2937.9,2937.1,5.73714198]
[1767055937188,0.01223105,2938.0,2937.2,5.73706775]
[1767055937399,0.01023105,2937.8,2937.2,5.77111378]
[1767055937781,0.01023105,2937.8,2937.2,5.73706775]
[1767055938212,0.01223105,2938.0,2937.4,2.3325]
[1767055938509,0.893,2937.7,2937.5,2.36654255]
[1767055940176,0.893,2937.7,2937.5,2.3325]
[1767055941787,0.894,2937.7,2937.5,2.3325]
[1767055942714,0.001,2937.7,2937.5,2.3325]
[1767055952325,0.001,2937.7,2937.5,2.36654255]
[1767055953020,0.895,2938.0,2937.6,2.3325]
[1767055956326,0.002,2938.6,2937.7,2.3325]
[1767055956498,0.893,2938.5,2937.9,2.3325]
[1767055957619,0.893,2938.5,2938.0,2.3325]
[1767055963824,0.01023105,2938.4,2937.7,2.3325]
[1767055964014,0.01023105,2938.0,2937.4,2.3325]
[1767055965220,0.90323105,2938.0,2937.4,2.3325]
[1767055966328,0.90323105,2938.0,2937.5,0.001]
[1767055969812,0.90323105,2938.0,2937.5,2.2864]
[1767055973720,0.893,2938.0,2937.6,0.03404139]
[1767055974030,0.893,2938.0,2937.6,2.31944139]
[1767055976108,0.893,2938.0,2937.6,2.2854]
[1767055982342,0.893,2938.0,2937.2,3.40459142]
[1767055982343,0.01023105,2937.9,2936.8,0.001]
[1767055982547,5.10638023,2937.9,2937.0,2.3708]
[1767055982730,0.01023105,2937.8,2937.2,2.3708]
[1767055982935,0.90323105,2938.0,2937.3,2.3708]
[1767055983536,0.03409104,2937.9,2937.3,2.3708]
[1767055984941,0.90323105,2938.0,2937.4,0.03404371]
[1767055985139,0.90323105,2938.0,2937.4,2.3708]
[1767055987555,0.93732209,2938.0,2937.4,2.3708]
[1767055987854,0.90323105,2938.0,2937.4,2.3708]
[1767055990230,1.3385308,2938.0,2937.4,2.3708]
[1767055990450,1.3405308,2938.0,2937.4,2.3708]
[1767055990842,0.03409104,2937.9,2937.4,2.3708]
[1767055993659,0.01023105,2937.5,2937.2,3.40459747]
[1767055993859,0.01023105,2937.5,2936.6,0.002]
[1767055993860,5.06205814,2937.2,2936.6,0.002]
[1767055994043,0.50620581,2937.1,2936.6,0.002]
[1767055994244,5.06205814,2937.2,2936.6,0.002]
[1767055994454,5.06205814,2937.4,2936.6,0.002]
[1767055994749,0.893,2937.5,2936.6,2.3728]
[1767055994750,4.2973561,2937.5,2936.6,2.3728]
[1767055994952,4.29726709,2937.5,2936.6,2.3728]
[1767055995146,0.893,2937.5,2936.7,2.3708]
[1767055995362,0.893,2937.5,2936.8,2.3708]
[1767055995733,3.40579092,2938.0,2937.3,2.2753]
[1767055995937,0.002,2938.2,2937.7,2.2753]
[1767055996139,0.02758648,2938.2,2937.7,2.2753]
[1767055996546,0.002,2938.2,2937.7,2.2753]
[1767055998549,0.002,2938.2,2937.5,2.2753]
[1767055999549,0.002,2938.2,2937.5,5.67952326]
[1767055999749,0.002,2938.2,2937.6,2.2753]
[1767056002969,0.002,2938.2,2937.7,2.2753]
[1767056003339,0.002,2938.5,2937.8,2.2753]
[1767056005671,0.002,2938.5,2937.8,3.43789549]
[1767056005966,0.002,2938.5,2937.9,2.2753]
[1767056008955,0.01223105,2938.5,2937.9,2.2753]
[1767056009281,0.36986709,2938.4,2937.7,2.2753]
[1767056009760,0.01023105,2938.3,2937.7,2.2753]
[1767056011983,0.36986709,2938.4,2937.7,2.2753]
[1767056014712,0.002,2938.3,2937.7,2.2753]
[1767056026008,0.01223105,2938.3,2937.5,0.001]
[1767056026170,0.40309452,2938.2,2937.5,2.2877]
[1767056028202,0.01023105,2938.1,2937.5,0.001]
[1767056028375,0.02558648,2938.0,2937.3,2.2877]
[1767056028698,0.49657278,2938.0,2937.3,2.2877]
[1767056036919,0.4709863,2938.0,2937.3,2.32174487]
[1767056037082,0.4709863,2938.0,2937.3,2.2877]
[1767056046417,0.4729863,2938.0,2937.3,2.2877]
[1767056048026,0.02558648,2937.9,2937.3,2.2877]
[1767056048407,0.4729863,2938.0,2937.3,2.2877]
[1767056050727,0.02558648,2937.9,2937.3,2.2877]
[1767056058721,0.58280177,2937.9,2937.3,2.2877]
[1767056070445,0.58480177,2937.9,2937.3,2.2877]
[1767056071249,0.02758648,2937.9,2937.3,2.2877]
[1767056073347,0.002,2937.9,2937.3,2.2877]
[1767056074048,0.02758648,2937.9,2937.3,2.2877]
[1767056074350,0.002,2937.9,2937.3,2.2877]
[1767056075049,0.02758648,2937.9,2937.3,2.2877]
[1767056075349,0.02758648,2937.9,2937.4,2.36654371]
[1767056075350,0.002,2937.9,2937.4,2.36654371]
[1767056075847,0.002,2937.9,2937.4,2.3325]
[1767056076065,0.002,2937.9,2937.5,2.36654255]
[1767056077250,0.002,2938.0,2937.5,0.03404255]
[1767056077438,0.002,2938.0,2937.6,2.3325]
[1767056078355,0.001,2937.9,2937.6,2.3325]
[1767056086978,0.001,2937.9,2937.8,2.2621]
[1767056089175,0.001,2937.9,2937.4,2.2621]
[1767056093380,0.001,2937.9,2937.5,0.01800918]
[1767056093676,0.001,2937.9,2937.6,2.2621]
[1767056100876,0.001,2937.9,2937.4,0.001]
[1767056101176,0.001,2937.9,2937.3,0.001]
[1767056101581,0.001,2937.9,2937.3,2.4843]
[1767056102380,0.001,2937.9,2937.4,2.51834371]
[1767056102680,0.002,2938.0,2937.6,2.4833]
[1767056102882,0.002,2938.0,2937.7,2.51734023]
[1767056104175,0.893,2938.2,2937.8,2.4833]
[1767056109391,0.893,2938.2,2937.8,2.50130918]
[1767056109986,0.893,2938.2,2937.8,2.50230918]
[1767056110290,0.895,2938.2,2937.8,2.50230918]
[1767056111691,0.895,2938.2,2937.8,3.09295159]
[1767056111988,0.0233489,2938.6,2937.8,0.60965159]
[1767056112198,0.0233489,2938.6,2937.9,2.4833]
[1767056115895,3.41419562,2938.7,2937.9,2.4833]
[1767056116098,3.43754452,2938.7,2938.1,2.3583]
[1767056116307,4.21209494,2938.7,2938.1,2.3583]
[1767056117317,0.03457995,2938.7,2938.1,2.3583]
[1767056117467,0.001,2938.7,2938.2,2.3583]
[1767056119686,0.001,2938.7,2938.3,2.3583]
[1767056121901,0.001,2938.7,2938.4,2.3583]
[1767056122114,0.001,2938.9,2938.6,2.3583]
[1767056128516,0.001,2939.0,2938.6,2.3583]
[1767056129315,0.00799559,2939.4,2938.6,0.03402981]
[1767056129616,0.0233489,2939.3,2938.7,2.3583]
[1767056131303,0.0233489,2939.3,2938.7,2.63464439]
[1767056131502,3.41005048,2939.4,2938.8,2.3583]
[1767056132828,1.10523105,2939.9,2938.8,2.3583]
[1767056133121,0.01023105,2939.7,2938.8,2.3583]
[1767056133320,0.01023105,2939.7,2939.0,2.3583]
[1767056133694,3.41196525,2939.7,2939.0,2.3583]
[1767056134091,0.002,2939.3,2939.0,2.3583]
[1767056137329,3.41371726,2939.9,2939.0,2.3583]
[1767056137520,4.09542331,2939.9,2939.0,2.3583]
[1767056141097,0.6939371,2939.9,2939.0,2.3583]
[1767056141796,0.6939371,2939.9,2939.1,2.3583]
[1767056142928,4.09543807,2939.9,2939.1,2.3583]
[1767056146539,0.01023105,2939.7,2938.8,2.3553]
[1767056146704,5.05936668,2939.2,2938.5,2.3553]
[1767056146898,5.05936668,2939.5,2938.7,2.3553]
[1767056147118,0.01023105,2939.4,2938.7,2.3553]
[1767056147298,0.01023105,2939.4,2938.8,2.38932749]
[1767056148228,0.01023105,2939.4,2939.0,0.001]
[1767056148438,0.35144122,2939.4,2939.0,0.001]
[1767056148728,0.01023105,2939.4,2939.0,0.001]
[1767056149124,0.01023105,2939.4,2938.8,2.3553]
[1767056149330,0.01023105,2939.4,2938.4,3.40317376]
[1767056149331,3.41228643,2939.4,2938.4,3.40317376]
[1767056149528,3.41228643,2939.4,2938.5,2.69571738]
[1767056150811,0.01023105,2939.2,2938.5,2.69571738]
[1767056152235,0.01023105,2939.2,2938.5,2.74989401]
[1767056152937,0.01023105,2939.4,2938.5,2.74989401]
[1767056153310,0.01023105,2939.4,2938.6,2.3553]
[1767056153510,0.01023105,2939.4,2938.7,2.3553]
[1767056155550,0.01223105,2939.4,2938.7,2.3553]
[1767056162147,0.002,2939.4,2938.7,2.3553]
[1767056162325,0.002,2939.4,2938.8,2.3084]
[1767056163948,0.002,2939.4,2938.3,0.001]
[1767056164147,0.002,2939.4,2937.9,2.3084]
[1767056164148,0.01023105,2938.7,2937.9,2.3084]
[1767056164322,0.01023105,2938.7,2938.0,2.62864]
[1767056164873,0.01023105,2938.7,2938.5,0.001]
[1767056165018,0.01023105,2938.7,2938.1,2.3084]
[1767056169851,0.01023105,2938.9,2938.1,2.3084]
[1767056170733,3.41424036,2939.0,2938.1,2.3084]
[1767056170734,0.01161103,2939.0,2938.1,2.3084]
[1767056170930,3.41413717,2939.0,2938.1,2.571264]
[1767056171553,3.41265186,2939.1,2938.2,0.03403444]
[1767056171752,0.01161103,2939.0,2938.4,2.3084]
[1767056172056,3.41416779,2939.0,2938.4,2.3084]
[1767056172548,0.002,2938.7,2938.4,2.3084]
[1767056172967,0.01161103,2939.0,2938.5,0.32014]
[1767056173122,0.01161103,2939.0,2938.4,2.3084]
[1767056179662,0.01161103,2939.0,2938.4,2.3094]
[1767056179845,0.01361103,2939.0,2938.4,2.3094]
[1767056181067,3.41613154,2939.0,2938.4,2.3094]
[1767056181361,4.60497111,2939.0,2938.4,2.3094]
[1767056183476,4.60497111,2939.0,2938.4,2.28493766]
[1767056184639,4.60497111,2939.0,2938.4,0.001]
[1767056186078,4.60497111,2939.0,2938.4,2.404]
[1767056186236,4.60497111,2939.0,2938.4,2.37953765]
[1767056186437,1.30773581,2938.9,2938.4,2.37953765]
[1767056186638,0.01161103,2938.8,2938.4,2.37953765]
[1767056188073,0.01161103,2938.8,2938.4,2.38053765]
[1767056188836,0.01361103,2939.0,2938.4,2.38053765]
[1767056189368,0.002,2939.0,2938.4,2.38053765]
[1767056191284,0.34359301,2939.0,2938.4,2.38053765]
[1767056191482,0.01161103,2938.9,2938.4,2.38053765]
[1767056192071,0.01161103,2938.9,2938.3,2.403]
[1767056196276,0.01161103,2938.9,2938.3,2.404]
[1767056198792,0.01161103,2938.9,2938.2,0.893]
[1767056198991,0.01161103,2938.9,2938.2,3.296]
[1767056199169,0.01161103,2938.9,2938.3,2.403]
[1767056201370,0.01161103,2938.9,2938.0,0.001]
[1767056201560,0.01161103,2938.9,2938.2,3.296]
[1767056201759,0.01161103,2938.9,2938.3,2.403]
[1767056203389,0.01161103,2938.9,2938.3,2.404]
[1767056204907,0.01161103,2938.9,2938.3,0.001]
[1767056206602,0.01161103,2938.9,2938.3,2.3878]
[1767056208296,5.05974649,2938.4,2937.9,0.893]
[1767056208469,5.05974649,2938.6,2937.9,3.2798]
[1767056208883,5.05974649,2938.6,2937.9,2.3868]
[1767056209181,0.02446601,2937.9,2937.6,2.3868]
[1767056209385,0.0190935,2937.9,2937.6,2.3868]
[1767056212784,5.05974649,2938.6,2937.6,2.3868]
[1767056212985,8.46275192,2938.6,2937.6,2.3868]
[1767056213187,4.25040243,2938.5,2937.6,2.3868]
[1767056213576,0.8472983,2938.5,2937.6,2.3868]
[1767056214008,4.25040806,2938.5,2937.6,2.3868]
[1767056215689,0.8472983,2938.5,2937.6,2.3868]
[1767056217710,0.85890933,2938.5,2937.6,2.3868]
[1767056218006,4.26203689,2938.5,2937.6,2.3868]
[1767056218204,0.93217834,2938.4,2937.6,2.3868]
[1767056220006,5.05974649,2938.2,2937.6,2.3868]
[1767056220313,5.05974649,2938.2,2937.5,0.001]
[1767056220617,4.33542281,2938.4,2937.2,0.001]
[1767056220618,5.05974649,2938.0,2937.2,0.001]
[1767056220780,5.05974649,2938.0,2937.3,2.4663]
[1767056221499,5.05974649,2938.2,2937.3,2.4663]
[1767056221693,0.50699775,2938.1,2937.3,2.4663]
[1767056225116,0.50699775,2938.1,2937.3,2.4673]
[1767056225410,0.002,2938.0,2937.3,2.4673]
[1767056226119,0.002,2938.0,2936.6,2.4683]
[1767056226414,5.06997754,2937.4,2936.3,2.4663]
[1767056226721,0.01023105,2937.2,2936.3,2.4663]
[1767056231117,0.893,2937.3,2936.3,2.4663]
[1767056231411,1.02206119,2937.5,2936.7,2.4663]
[1767056231585,4.29727141,2937.5,2936.7,0.75260465]
[1767056231785,4.29727141,2937.5,2936.5,2.4663]
[1767056234604,0.01023105,2937.4,2936.5,2.4663]
[1767056235307,0.05278569,2937.4,2936.5,2.4663]
[1767056239130,0.04255464,2937.4,2936.6,2.3562]
[1767056239313,4.35070001,2937.8,2936.8,2.3562]
[1767056239510,0.04255029,2937.7,2936.8,2.3562]
[1767056240118,0.04255029,2937.7,2937.0,2.3562]
[1767056244417,3.4465929,2937.7,2937.0,2.3562]
[1767056244711,0.4350824,2937.6,2937.0,2.3562]
[1767056245597,0.44531345,2937.6,2936.8,2.3562]